bitfinex-derivatives/quotes_ETHF0:USTF0_20250410
["timestamp","ask_amount","ask_price","bid_price","bid_amount"]
[1744245715574,3.05727,1635.9,1634.9,2.6962]
[1744245715776,3.2078,1635.5,1635.4,1.22321]
[1744245715972,3.2078,1635.5,1635.3,11.203]
[1744245716173,3.2078,1635.5,1635.4,1.59810534]
[1744245716174,3.2287636,1635.5,1635.4,1.59810534]
[1744245716481,4.4519736,1635.5,1635.4,4.29430534]
[1744245716978,3.2287636,1635.5,1635.4,4.29430534]
[1744245717284,0.05192301,1635.5,1635.4,9.29430534]
[1744245717574,1.27513301,1635.5,1635.4,4.29430534]
[1744245717783,4.48293301,1635.5,1635.4,9.29430534]
[1744245718174,1.27513301,1635.5,1635.4,9.29430534]
[1744245718473,1.27513301,1635.5,1635.4,4.29430534]
[1744245718682,1.27513301,1635.5,1635.4,9.29430534]
[1744245718877,0.05192301,1635.5,1635.4,9.29430534]
[1744245719084,1.27513301,1635.5,1635.4,9.29430534]
[1744245719382,1.27513301,1635.5,1635.4,4.29430534]
[1744245719682,0.05192301,1635.5,1635.4,6.59810534]
[1744245719878,4.48293301,1635.5,1635.4,12.54810534]
[1744245720181,1.22343,1635.2,1635.1,2.7911]
[1744245720579,1.58926118,1635.2,1635.1,3.10576534]
[1744245721083,0.36583118,1635.2,1635.1,14.05576534]
[1744245721383,0.36583118,1635.2,1635.1,8.10576534]
[1744245721678,0.36583118,1635.2,1635.1,9.05576534]
[1744245721884,0.00917151,1635.6,1635.1,110.1569]
[1744245722183,0.00917151,1635.6,1635.3,1.22335]
[1744245722481,0.00917151,1635.6,1635.4,46.0219]
[1744245722677,0.00917151,1635.6,1635.5,5.951]
[1744245722878,0.00917151,1635.6,1635.5,8.5664]
[1744245723377,6.26443,1636.3,1635.5,7.6154]
[1744245723584,3.2078,1636.1,1635.6,5.951]
[1744245723779,0.50512222,1636.2,1635.7,2.5924]
[1744245723981,3.2078,1636.3,1636.0,1.22282]
[1744245724186,4.43043,1636.3,1636.1,8.5434]
[1744245724386,1.22268,1636.2,1636.1,8.5434]
[1744245724581,1.22268,1636.2,1636.1,5.951]
[1744245725086,1.22268,1636.2,1636.0,0.00917151]
[1744245725087,1.22276,1636.1,1636.0,0.00917151]
[1744245725284,4.43056,1636.1,1636.0,0.00917151]
[1744245725479,5.42107478,1636.1,1636.0,0.00917151]
[1744245725685,4.93819055,1636.1,1636.0,0.00917151]
[1744245726384,5.42100907,1636.1,1636.0,0.00917151]
[1744245726987,4.93819055,1636.1,1636.0,1.51e-06]
[1744245727183,6.11562,1635.7,1635.1,93.208]
[1744245727378,1.22343,1635.2,1635.1,99.159]
[1744245727686,1.22343,1635.2,1635.1,141.1825]
[1744245727883,1.22343,1635.2,1635.1,146.1825]
[1744245728085,3.2078,1635.4,1635.1,144.959]
[1744245728282,4.43123,1635.2,1635.1,139.959]
[1744245728483,3.2078,1635.2,1635.1,139.959]
[1744245728786,4.43123,1635.2,1635.1,134.008]
[1744245729085,1.22365,1634.9,1634.8,6.0715]
[1744245729282,4.43145,1634.9,1634.8,5.4595]
[1744245729687,4.43145,1634.9,1634.5,93.221]
[1744245729688,3.05933,1634.8,1634.2,0.612]
[1744245729883,1.22424,1634.2,1634.1,2.6706]
[1744245730080,3.2078,1634.6,1634.1,2.6706]
[1744245730287,0.00917151,1634.3,1634.2,1.22418]
[1744245730779,3.2078,1635.0,1634.8,1.2237]
[1744245730982,3.2078,1635.0,1634.8,7.17572]
[1744245731181,4.43138,1635.0,1634.9,2.6706]
[1744245731789,4.93855864,1635.0,1634.9,2.6706]
[1744245732098,0.00917151,1635.1,1634.9,7.6706]
[1744245732281,0.00917151,1635.1,1635.0,1.22358]
[1744245732488,0.00917151,1635.1,1634.9,6.4801]
[1744245732689,4.43138,1635.0,1634.9,5.2565]
[1744245732892,4.43138,1635.0,1634.9,2.6706]
[1744245733290,4.43138,1635.0,1634.9,43.4706]
[1744245733797,4.43138,1635.0,1634.9,2.6706]
[1744245733995,1.22365,1634.9,1634.8,1.51e-06]
[1744245734298,10.63775908,1634.9,1634.8,1.51e-06]
[1744245734499,15.63775908,1634.9,1634.8,1.51e-06]
[1744245734996,10.63775908,1634.9,1634.8,1.51e-06]
[1744245735294,10.17509915,1634.9,1634.8,1.51e-06]
[1744245735497,1.22365,1634.9,1634.8,1.51e-06]
[1744245735796,3.2078,1635.0,1634.9,1.22365]
[1744245735988,0.00917151,1635.1,1635.0,1.22358]
[1744245736189,0.00917151,1635.1,1635.0,3.83058]
[1744245736391,3.2078,1635.2,1635.1,1.2235]
[1744245736596,3.2078,1635.2,1635.1,10.1554]
[1744245736901,3.2078,1635.2,1634.8,1.51e-06]
[1744245737196,3.2078,1635.2,1634.9,40.8]
[1744245737397,3.2078,1635.2,1635.1,1.22348]
[1744245737585,3.21697151,1635.2,1635.1,7.35648]
[1744245737785,3.21697151,1635.2,1635.1,12.35648]
[1744245737986,0.00917151,1635.2,1635.1,12.35648]
[1744245738204,3.2078,1635.4,1635.3,1.22335]
[1744245738394,3.2078,1635.6,1635.5,1.22315]
[1744245738595,3.2078,1635.6,1635.5,7.35615]
[1744245738894,3.2078,1635.6,1635.5,12.35615]
[1744245739195,3.2078,1635.8,1635.7,1.22306]
[1744245739386,4.4307,1636.0,1635.8,1.22293]
[1744245739584,4.4307,1636.0,1635.9,2.7913]
[1744245739799,5.24610218,1636.0,1635.9,4.01421]
[1744245740093,5.24631677,1636.0,1635.9,2.7913]
[1744245740399,5.24641568,1636.0,1635.9,2.7913]
[1744245740694,3.55916342,1636.0,1635.9,4.01421]
[1744245740893,0.00917151,1636.1,1635.9,4.01421]
[1744245740894,1.23195151,1636.1,1636.0,1.22283]
[1744245741085,0.36091342,1636.1,1636.0,4.01413]
[1744245741284,0.00917151,1636.1,1636.0,4.01413]
[1744245741494,0.00917151,1636.1,1636.0,9.01413]
[1744245742188,3.2078,1636.6,1636.0,10.5513]
[1744245742385,0.81676971,1636.5,1636.1,6.2647]
[1744245742594,0.3519667,1636.4,1636.3,1.22261]
[1744245742792,1.5745167,1636.4,1636.3,6.133]
[1744245742998,4.7823167,1636.4,1636.3,6.133]
[1744245743201,1.22261,1636.3,1636.2,40.8]
[1744245743391,0.3519667,1636.3,1636.2,42.02268]
[1744245743596,1.22255,1636.4,1636.3,1.22257]
[1744245743898,1.57471718,1636.4,1636.3,2.7215]
[1744245744299,4.78251718,1636.4,1636.3,2.7215]
[1744245744490,5.28790489,1636.4,1636.3,2.7215]
[1744245745100,4.06537489,1636.4,1636.3,2.7215]
[1744245745286,5.28790489,1636.4,1636.3,3.94411]
[1744245745492,5.28790489,1636.4,1636.3,2.7215]
[1744245746097,1.22261,1636.3,1636.2,40.8]
[1744245746299,4.38269718,1636.3,1636.2,40.8]
[1744245746696,1.22283,1636.0,1635.9,2.6034]
[1744245747003,0.50538771,1636.0,1635.9,4.43065]
[1744245747293,0.50538771,1636.0,1635.9,50.23065]
[1744245747499,0.50538771,1636.0,1635.9,53.15385]
[1744245747700,1.22271,1636.2,1636.1,1.22276]
[1744245747995,7.23835,1636.3,1635.9,53.19606]
[1744245748187,0.00917151,1636.5,1636.4,1.22253]
[1744245748188,3.21697151,1636.5,1636.4,1.22253]
[1744245748393,3.21697151,1636.5,1636.1,3.2078]
[1744245748394,1.22253,1636.4,1636.3,7.35355]
[1744245748592,4.03113,1636.4,1636.3,7.35355]
[1744245748793,3.31380682,1636.4,1636.3,7.35355]
[1744245748993,0.50520682,1636.4,1636.3,7.35355]
[1744245749398,3.21697151,1636.5,1636.4,1.22253]
[1744245749600,4.43943151,1636.5,1636.4,1.22253]
[1744245749803,6.02557151,1636.5,1636.4,1.22253]
[1744245749989,7.75309789,1636.5,1636.4,3.88893]
[1744245750501,6.53063789,1636.5,1636.4,3.88893]
[1744245750897,3.21697151,1636.5,1636.4,3.88893]
[1744245751101,4.43943151,1636.5,1636.4,3.88893]
[1744245751294,4.43943151,1636.5,1636.4,2.6664]
[1744245751493,5.79867151,1636.5,1636.4,3.88893]
[1744245751705,7.02113151,1636.5,1636.4,3.88893]
[1744245751906,5.79867151,1636.5,1636.4,3.88893]
[1744245752399,3.21697151,1636.5,1636.4,3.88893]
[1744245752599,0.00917151,1636.5,1636.4,8.88893]
[1744245752797,0.00917151,1636.5,1636.4,14.68833]
[1744245752996,0.00917151,1636.5,1636.4,11.48053]
[1744245753196,1.51e-06,1636.5,1636.4,14.68833]
[1744245753398,1.51e-06,1636.5,1636.4,15.29953]
[1744245754203,1.51e-06,1636.5,1636.4,6.48053]
[1744245754707,1.51e-06,1636.5,1636.4,9.68833]
[1744245755205,1.51e-06,1636.5,1636.4,14.68833]
[1744245755398,1.51e-06,1636.5,1636.4,9.68833]
[1744245755598,3.05634,1636.4,1635.9,1.22287]
[1744245755806,1.22291,1635.9,1635.8,3.88418]
[1744245756510,3.95409,1636.0,1635.9,1.22291]
[1744245756720,2.7312,1636.0,1635.9,1.22291]
[1744245756912,3.2078,1636.1,1636.0,1.22283]
[1744245757204,2.6052,1636.2,1636.1,1.22276]
[1744245757609,3.82788,1636.2,1636.1,7.35176]
[1744245757809,8.82788,1636.2,1636.1,6.129]
[1744245758009,1.22291,1635.9,1635.8,8.8473]
[1744245758211,2.6052,1636.2,1636.1,1.22276]
[1744245758511,1.22283,1636.0,1635.7,46.5749]
[1744245758712,1.22285,1636.0,1635.9,1.22283]
[1744245758911,1.2228,1636.1,1636.0,1.22276]
[1744245759218,5.66215,1636.1,1635.7,40.8]
[1744245759506,3.2078,1636.0,1635.8,5.878]
[1744245759709,3.95543,1636.0,1635.9,1.22291]
[1744245759912,7.16323,1636.0,1635.9,1.22291]
[1744245760206,1.2227,1636.2,1636.1,1.22276]
[1744245760407,2.7326,1636.2,1636.1,1.22276]
[1744245760913,3.95528,1636.2,1636.1,1.22276]
[1744245761410,3.2078,1636.4,1636.3,1.22261]
[1744245761911,5.9404,1636.4,1636.2,5.879]
[1744245762215,5.9404,1636.4,1636.3,1.22261]
[1744245763010,5.9404,1636.4,1636.3,3.72581]
[1744245763709,5.9404,1636.4,1636.3,1.22261]
[1744245763914,1.22261,1636.3,1636.2,7.10164]
[1744245764206,2.6693,1636.3,1636.2,7.10164]
[1744245764911,3.2078,1636.4,1636.3,1.22261]
[1744245765310,1.51e-06,1636.5,1636.4,1.22253]
[1744245765912,2.62250151,1636.5,1636.4,1.22253]
[1744245766616,1.51e-06,1636.5,1636.4,1.22253]
[1744245766815,1.51e-06,1636.5,1636.4,9.43033]
[1744245767115,1.51e-06,1636.5,1636.4,11.92223]
[1744245767314,1.51e-06,1636.5,1636.4,17.91823]
[1744245767706,1.51e-06,1636.5,1636.4,12.91823]
[1744245768105,1.51e-06,1636.5,1636.4,17.91823]
[1744245768306,1.51e-06,1636.5,1636.4,18.52943]
[1744245768914,1.51e-06,1636.5,1636.4,7.53343]
[1744245769113,1.51e-06,1636.5,1636.4,6.92223]
[1744245769316,1.51e-06,1636.5,1636.4,9.51463]
[1744245769813,1.51e-06,1636.5,1636.4,15.39263]
[1744245771315,1.51e-06,1636.5,1636.4,6.30683]
[1744245771513,1.51e-06,1636.5,1636.4,15.39263]
[1744245771723,1.51e-06,1636.5,1636.4,20.39263]
[1744245772212,1.51e-06,1636.5,1636.4,26.38863]
[1744245773119,2.5764,1637.4,1637.3,1.22186]
[1744245773323,2.93098547,1637.4,1637.3,1.24281737]
[1744245773620,7.93098547,1637.4,1637.3,42.04281737]
[1744245773814,8.43944864,1637.4,1637.3,42.04281737]
[1744245774721,12.86903864,1637.4,1637.3,42.04281737]
[1744245775112,12.86903864,1637.4,1637.3,1.24281737]
[1744245775317,11.64724864,1637.4,1637.3,1.24281737]
[1744245775523,7.93098547,1637.4,1637.3,1.24281737]
[1744245776216,8.79819,1637.4,1637.3,0.02095737]
[1744245776420,4.15238839,1637.4,1637.3,0.02095737]
[1744245776612,9.15238839,1637.4,1637.3,0.02095737]
[1744245777009,9.15238839,1637.4,1637.3,1.24281737]
[1744245778024,9.15238839,1637.4,1637.3,0.02095737]
[1744245779232,9.15238839,1637.4,1637.3,1.24281737]
[1744245779622,2.93059839,1637.4,1637.3,1.24281737]
[1744245780019,4.15238839,1637.4,1637.3,1.24281737]
[1744245780325,2.93059839,1637.4,1637.3,1.24281737]
[1744245780825,2.5764,1637.4,1637.3,1.24281737]
[1744245781025,4.15217096,1637.4,1637.3,0.02095737]
[1744245781321,9.15217096,1637.4,1637.3,0.02095737]
[1744245781718,4.15217096,1637.4,1637.3,0.02095737]
[1744245781921,2.93038096,1637.4,1637.3,1.24281737]
[1744245782222,4.15217096,1637.4,1637.3,1.24281737]
[1744245782428,3.21697151,1637.5,1637.4,1.22179]
[1744245782630,5.92697151,1637.5,1637.4,1.22179]
[1744245782831,0.00917151,1637.5,1637.4,1.24274737]
[1744245783126,2.71917151,1637.5,1637.4,1.24274737]
[1744245783528,0.00917151,1637.5,1637.4,1.24274737]
[1744245784126,1.51e-06,1637.5,1637.4,6.24274737]
[1744245784418,1.51e-06,1637.5,1637.4,4.45054737]
[1744245786533,1.51e-06,1637.5,1637.4,10.06054737]
[1744245787028,1.51e-06,1637.5,1637.4,6.85274737]
[1744245787326,2.60380151,1637.5,1637.4,6.85274737]
[1744245787525,8.82551151,1637.5,1637.4,0.02095737]
[1744245787730,11.51481151,1637.5,1637.4,0.02095737]
[1744245788137,11.8684987,1637.5,1637.4,0.02095737]
[1744245788834,11.51481151,1637.5,1637.4,0.02095737]
[1744245789134,11.51481151,1637.5,1637.4,1.24274737]
[1744245789335,11.86871267,1637.5,1637.4,1.24274737]
[1744245789537,6.51481151,1637.5,1637.4,1.24274737]
[1744245790036,3.82551151,1637.5,1637.4,1.24274737]
[1744245790233,2.60380151,1637.5,1637.4,1.24274737]
[1744245790833,2.60380151,1637.5,1637.4,6.85174737]
[1744245791334,1.51e-06,1637.5,1637.4,6.85174737]
[1744245792135,1.51e-06,1637.5,1637.4,1.24274737]
[1744245792334,1.51e-06,1637.5,1637.4,3.82994737]
[1744245792635,1.51e-06,1637.5,1637.4,14.43894737]
[1744245792934,1.51e-06,1637.5,1637.4,15.05014737]
[1744245793125,1.51e-06,1637.5,1637.4,21.04614737]
[1744245793830,1.51e-06,1637.5,1637.4,9.43894737]
[1744245794034,12.05571151,1637.5,1637.4,0.02095737]
[1744245794339,8.76592489,1637.5,1637.4,1.24274737]
[1744245794638,8.41170151,1637.5,1637.4,1.24274737]
[1744245795229,9.63341151,1637.5,1637.4,1.24274737]
[1744245795429,14.98811672,1637.5,1637.4,0.02095737]
[1744245795825,14.98811672,1637.5,1637.4,1.24274737]
[1744245796029,14.98811672,1637.5,1637.4,0.02095737]
[1744245797431,1.22186,1637.3,1637.2,0.00917151]
[1744245797738,1.22208,1637.0,1636.9,25.0]
[1744245798041,4.78458521,1637.0,1636.9,25.0]
[1744245798244,9.78464098,1637.0,1636.9,25.0]
[1744245798538,15.61864098,1637.0,1636.9,25.0]
[1744245798743,21.22764098,1637.0,1636.9,24.94883416]
[1744245799142,21.22764098,1637.0,1636.9,15.83172416]
[1744245799741,21.22764098,1637.0,1636.9,9.19968417]
[1744245799940,21.22764098,1637.0,1636.0,14.25418175]
[1744245799941,1.22276,1636.1,1636.0,14.25418175]
[1744245800236,4.80627835,1636.1,1636.0,11.54309909]
[1744245800442,9.80627835,1636.1,1636.0,11.54309909]
[1744245800642,4.80627835,1636.1,1636.0,11.54309909]
[1744245801346,1.22283,1636.0,1635.9,0.00917151]
[1744245801545,1.24378737,1636.0,1635.9,0.00917151]
[1744245801755,1.59675074,1636.0,1635.9,0.00917151]
[1744245802246,1.24378737,1636.0,1635.9,0.00917151]
[1744245802646,6.24378737,1636.0,1635.9,0.00917151]
[1744245803039,3.91148737,1636.0,1635.9,0.00917151]
[1744245803239,8.91148737,1636.0,1635.9,0.00917151]
[1744245803543,14.87455353,1636.0,1635.9,1.51e-06]
[1744245803749,9.87455353,1636.0,1635.9,1.51e-06]
[1744245804250,3.91148737,1636.0,1635.9,1.51e-06]
[1744245804449,0.02095737,1636.0,1635.9,1.22291151]
[1744245805349,7.07778737,1636.0,1635.9,5.90075719]
[1744245805648,5.85495737,1636.0,1635.9,3.95301151]
[1744245806450,7.07778737,1636.0,1635.9,5.90075719]
[1744245806943,7.07778737,1636.0,1635.9,2.73010151]
[1744245807149,9.65798737,1636.0,1635.9,1.51e-06]
[1744245809147,5.85495737,1636.0,1635.9,1.22291151]
[1744245809945,7.07778737,1636.0,1635.9,4.39356719]
[1744245810248,0.02095737,1636.0,1635.9,1.22291151]
[1744245810646,0.0672732,1636.3,1636.2,1.22268]
[1744245810849,1.22255,1636.4,1636.1,3.05688]
[1744245811153,5.834,1636.5,1636.4,1.22253]
[1744245811355,4.43022,1636.6,1636.5,1.22246]
[1744245811553,1.22249,1636.5,1636.4,1.22248]
[1744245811951,4.43940151,1636.6,1636.5,1.22246]
[1744245812150,1.2225,1636.5,1636.2,6.26451]
[1744245812446,1.22253,1636.4,1636.3,6.83556]
[1744245812652,1.22253,1636.4,1636.3,6.83561]
[1744245812851,1.22251,1636.5,1636.4,1.2225]
[1744245813455,4.43941151,1636.6,1636.5,1.22246]
[1744245813848,0.00917151,1636.6,1636.5,1.22246]
[1744245814140,1.23155151,1636.6,1636.5,1.22246]
[1744245814455,0.00917151,1636.6,1636.5,1.22246]
[1744245815549,4.53023952,1636.8,1636.7,1.22231]
[1744245815747,6.76011449,1637.0,1636.9,1.22216]
[1744245815945,6.76011449,1637.0,1636.9,4.45091737]
[1744245816143,6.76011449,1637.0,1636.9,45.25091737]
[1744245816350,6.76011449,1637.0,1636.9,42.04311737]
[1744245816759,6.76011449,1637.0,1636.9,47.04311737]
[1744245817448,0.00917151,1637.1,1637.0,1.22208]
[1744245817645,0.00917151,1637.1,1637.0,6.64908]
[1744245817845,0.00917151,1637.1,1637.0,6.67003737]
[1744245818357,0.00917151,1637.1,1637.0,14.50010712]
[1744245818853,0.00917151,1637.1,1637.0,17.12420712]
[1744245819252,0.00917151,1637.1,1637.0,8.91640712]
[1744245819448,1.23118151,1637.1,1637.0,7.69432712]
[1744245819952,0.00917151,1637.1,1637.0,8.91640712]
[1744245820848,0.00917151,1637.1,1637.0,17.12420712]
[1744245821450,3.2078,1637.4,1637.3,1.22186]
[1744245821660,1.22175,1637.5,1637.4,1.22179]
[1744245821844,1.2217,1637.6,1637.5,1.22169]
[1744245822049,1.2217,1637.6,1637.5,1.24264737]
[1744245822347,10.26343,1637.7,1637.6,1.22164]
[1744245822547,4.43860151,1637.7,1637.6,1.24259737]
[1744245822747,4.43860151,1637.7,1637.6,0.02095737]
[1744245822951,4.43860151,1637.7,1637.6,1.24259737]
[1744245823157,0.00917151,1637.7,1637.6,1.24259737]
[1744245823361,6.76011449,1638.2,1637.6,13.65475737]
[1744245823552,6.76011449,1638.2,1637.9,0.02095737]
[1744245823753,6.76011449,1638.2,1638.1,1.22126]
[1744245824152,7.98130449,1638.2,1638.1,1.24221737]
[1744245824461,6.76011449,1638.2,1638.1,1.24221737]
[1744245824962,7.98130449,1638.2,1638.1,0.02095737]
[1744245825458,11.18910449,1638.2,1638.1,3.19275737]
[1744245825655,7.60769,1638.2,1638.1,3.19275737]
[1744245826658,13.44169,1638.2,1638.1,0.02095737]
[1744245827657,18.44169,1638.2,1638.1,0.02095737]
[1744245827958,3.05335,1638.0,1637.7,1.22152]
[1744245828149,1.2215,1637.8,1637.7,4.30372]
[1744245828449,7.05547,1637.9,1637.7,3.0822]
[1744245828646,3.05317,1638.1,1637.7,3.0822]
[1744245828647,5.834,1638.1,1637.7,3.0822]
[1744245828857,1.22148,1637.9,1637.8,1.22147]
[1744245829056,1.22149,1637.8,1637.7,3.09137151]
[1744245829258,1.22149,1637.9,1637.8,1.22147]
[1744245829757,1.22148,1637.9,1637.8,1.22147]
[1744245829957,1.22136,1638.0,1637.9,1.22141]
[1744245830552,1.22149,1637.8,1637.7,3.09137151]
[1744245830752,1.22149,1637.8,1637.7,4.31289151]
[1744245831157,4.42929,1637.8,1637.7,3.09137151]
[1744245831862,1.22145,1637.9,1637.7,3.09137151]
[1744245832062,1.22145,1637.9,1637.8,1.22144]
[1744245832264,1.22149,1637.8,1637.7,4.31287151]
[1744245832454,1.2214,1638.0,1637.9,1.22139]
[1744245832764,5.834,1638.1,1637.7,9.35306151]
[1744245833056,1.22137,1638.0,1637.9,1.22136]
[1744245833662,7.05532,1638.1,1638.0,1.22134]
[1744245834363,1.22132,1638.1,1638.0,1.22134]
[1744245834667,5.83970521,1638.3,1637.9,11.68426]
[1744245834862,1.22123,1638.2,1638.1,1.2212]
[1744245835069,1.22687521,1638.3,1638.2,1.22119]
[1744245835358,0.00570521,1638.3,1638.2,50.65199]
[1744245835559,0.00570521,1638.3,1638.2,55.65199]
[1744245835956,8.8798,1638.8,1638.4,3.05254]
[1744245836159,1.22087,1638.7,1638.6,1.22087]
[1744245836768,1.22089,1638.6,1638.5,5.422]
[1744245837157,1.22089,1638.6,1638.5,6.64297]
[1744245837363,1.23001151,1638.7,1638.6,1.22089]
[1744245837562,1.22089,1638.6,1638.5,6.64291]
[1744245837763,1.22089,1638.6,1638.5,6.64297]
[1744245837964,1.23001151,1638.7,1638.6,1.22089]
[1744245838767,0.00917151,1638.7,1638.6,1.22089]
[1744245839469,0.00917151,1638.7,1638.6,6.22089]
[1744245839860,14.45720449,1639.2,1638.7,3.05188]
[1744245840060,7.98060449,1639.2,1639.1,1.22052]
[1744245840260,6.76011449,1639.2,1639.1,9.84932]
[1744245840565,6.76011449,1639.2,1639.1,6.64152]
[1744245840958,7.98055449,1639.2,1639.1,5.421]
[1744245841364,11.18835449,1639.2,1639.1,5.421]
[1744245841769,7.98055449,1639.2,1639.1,5.421]
[1744245841972,7.98055449,1639.2,1639.1,6.64152]
[1744245842173,7.98055449,1639.2,1639.1,5.421]
[1744245842368,7.98055449,1639.2,1639.1,6.64152]
[1744245842566,1.22044,1639.2,1639.1,5.421]
[1744245843061,4.42824,1639.2,1639.1,5.421]
[1744245843268,1.22067,1638.9,1638.8,5.42]
[1744245843666,1.22089,1638.6,1638.5,4.57891]
[1744245844069,7.05482,1638.8,1638.7,1.22082]
[1744245844376,1.22088,1638.7,1638.6,1.22087]
[1744245844672,12.09373,1638.8,1638.5,3.358]
[1744245844871,12.09373,1638.8,1638.4,8.67977151]
[1744245844872,15.21223,1638.8,1638.4,5.42917151]
[1744245845069,1.22097,1638.5,1638.4,5.42917151]
[1744245845265,1.22097,1638.5,1638.4,0.00917151]
[1744245845466,9.0418,1638.8,1638.4,3.21697151]
[1744245845677,5.834,1638.8,1638.5,8.725]
[1744245845869,1.22089,1638.6,1638.5,8.725]
[1744245846069,4.33936,1638.7,1638.6,1.22089]
[1744245846374,3.1185,1638.7,1638.6,1.22089]
[1744245846572,1.22086,1638.7,1638.5,8.725]
[1744245846781,1.22089,1638.6,1638.5,11.8493]
[1744245846969,1.22089,1638.6,1638.5,13.07023]
[1744245847277,8.8859,1638.8,1638.5,8.725]
[1744245847477,1.22089,1638.6,1638.5,9.94594]
[1744245847977,1.22089,1638.6,1638.5,8.725]
[1744245848378,4.48009,1638.6,1638.5,8.725]
[1744245849678,1.22089,1638.6,1638.5,8.725]
[1744245850066,1.22089,1638.6,1638.5,9.94597]
[1744245850273,3.2078,1638.7,1638.5,8.725]
[1744245850467,1.22089,1638.6,1638.5,1.22089]
[1744245850778,1.22097,1638.5,1638.4,0.00917151]
[1744245850977,1.22097,1638.5,1638.4,4.55971151]
[1744245851278,7.05495,1638.6,1638.5,1.22097]
[1744245851480,7.05495,1638.6,1638.5,3.3295]
[1744245851881,7.40786229,1638.6,1638.5,3.3295]
[1744245852076,1.22097,1638.5,1638.4,5.22617151]
[1744245852378,1.22097,1638.5,1638.4,1.51e-06]
[1744245852379,13.65523905,1638.5,1638.4,1.51e-06]
[1744245852683,22.91323905,1638.5,1638.4,1.51e-06]
[1744245852976,23.32159802,1638.5,1638.4,1.51e-06]
[1744245856282,1.22141,1637.9,1637.8,3.3295]
[1744245856474,4.42921,1637.9,1637.8,3.3295]
[1744245857079,3.2078,1637.9,1637.8,4.55099]
[1744245857583,4.42921,1637.9,1637.8,4.55099]
[1744245857984,4.42921,1637.9,1637.8,3.3295]
[1744245859380,4.42921,1637.9,1637.8,4.55099]
[1744245859574,4.42921,1637.9,1637.8,3.3295]
[1744245859781,4.78204306,1637.9,1637.8,3.3295]
[1744245859982,4.78202244,1637.9,1637.8,3.3295]
[1744245860183,1.22149,1637.8,1637.7,0.00917151]
[1744245860384,4.91860244,1637.8,1637.7,0.00917151]
[1744245860586,4.91860244,1637.8,1637.7,3.30327151]
[1744245864578,4.56579,1637.8,1637.7,3.30327151]
[1744245864779,1.22149,1637.8,1637.7,3.30327151]
[1744245867087,5.83399849,1637.7,1636.7,0.10627074]
[1744245867288,6.26285,1637.1,1636.8,3.1328]
[1744245867581,1.22216,1636.9,1636.8,3.1328]
[1744245867786,1.24311737,1636.9,1636.8,3.1328]
[1744245868275,4.45091737,1636.9,1636.8,3.1328]
[1744245868479,1.24311737,1636.9,1636.8,3.1328]
[1744245869288,4.45091737,1636.9,1636.8,3.1328]
[1744245871388,1.24311737,1636.9,1636.8,4.35503]
[1744245871789,1.24311737,1636.9,1636.8,3.1328]
[1744245871984,4.45091737,1636.9,1636.8,3.1328]
[1744245872488,10.28491586,1636.9,1636.8,3.1328]
[1744245872691,13.74215135,1636.9,1636.8,3.1328]
[1744245872993,13.32231586,1636.9,1636.8,3.1328]
[1744245873180,13.67379462,1636.9,1636.8,3.1328]
[1744245873376,13.32231586,1636.9,1636.8,3.1328]
[1744245873589,1.22223,1636.8,1636.7,0.00917151]
[1744245873791,4.28058737,1636.8,1636.7,0.00917151]
[1744245873990,4.28058737,1636.8,1636.7,1.51e-06]
[1744245874192,15.46600066,1636.8,1636.7,1.51e-06]
[1744245874492,1.22255,1636.4,1636.3,1.22255]
[1744245874684,1.22261,1636.3,1636.2,3.0231]
[1744245874988,1.24356737,1636.3,1636.2,3.0231]
[1744245875588,1.24356737,1636.3,1636.1,0.00917151]
[1744245875589,1.22268,1636.2,1636.1,0.00917151]
[1744245875782,4.45143737,1636.2,1636.1,0.00917151]
[1744245876187,3.22875737,1636.2,1636.1,0.00917151]
[1744245876391,0.02095737,1636.2,1636.1,4.43973151]
[1744245876585,0.02095737,1636.2,1636.1,7.55653151]
[1744245876780,0.02095737,1636.2,1636.1,15.76003151]
[1744245877089,5.83399849,1636.3,1636.2,1.22268]
[1744245877590,5.83399849,1636.3,1636.2,9.45428]
[1744245877984,7.05660849,1636.3,1636.2,9.45428]
[1744245878787,7.05660849,1636.3,1636.2,8.2316]
[1744245878989,5.83399849,1636.3,1636.2,9.45428]
[1744245879490,5.83399849,1636.3,1636.2,4.45428]
[1744245879687,5.83399849,1636.3,1636.2,9.45428]
[1744245879890,0.78769849,1636.3,1636.2,12.66208]
[1744245880192,4.43029,1636.5,1636.4,1.22253]
[1744245880588,3.2078,1636.7,1636.4,8.05634]
[1744245880789,1.22238,1636.6,1636.5,4.52244]
[1744245881495,1.2223,1636.8,1636.7,1.22229]
[1744245881687,1.22231,1636.7,1636.6,4.53847]
[1744245882190,4.43005,1636.8,1636.7,1.22231]
[1744245882388,4.43005,1636.8,1636.7,3.0882]
[1744245882896,4.43005,1636.8,1636.7,4.31051]
[1744245883790,5.22681,1637.0,1636.7,6.14393]
[1744245883989,5.22681,1637.0,1636.9,1.22216]
[1744245884194,5.22681,1637.0,1636.9,0.02095737]
[1744245884398,3.21697151,1637.0,1636.9,1.24311737]
[1744245884695,0.00917151,1637.0,1636.9,14.55191737]
[1744245884898,6.5344,1637.7,1636.9,13.94095737]
[1744245885104,1.22161,1637.7,1637.6,1.22164]
[1744245885307,1.57373774,1637.7,1637.6,1.22164]
[1744245885599,1.22154,1637.8,1637.6,1.22164]
[1744245885795,4.54814,1637.8,1637.7,3.1385]
[1744245886291,9.54814,1637.8,1637.7,3.15945737]
[1744245886595,1.22154,1637.8,1637.7,3.15945737]
[1744245886800,1.22149,1637.8,1637.7,4.38098737]
[1744245887097,6.32787151,1637.9,1637.8,1.22149]
[1744245887098,4.43844151,1637.9,1637.8,1.22149]
[1744245887292,1.20053263,1637.8,1637.7,4.36002]
[1744245887996,1.22164,1637.6,1637.5,0.00917151]
[1744245888200,4.42944,1637.6,1637.5,0.00917151]
[1744245888696,4.42944,1637.6,1637.5,3.25777151]
[1744245888901,1.22164,1637.6,1637.5,3.25777151]
[1744245889194,1.22153,1637.8,1637.5,3.25777151]
[1744245889385,1.22158,1637.7,1637.6,1.2216]
[1744245889591,1.22158,1637.7,1637.5,3.25777151]
[1744245889897,1.22158,1637.7,1637.6,1.22164]
[1744245890103,3.91957,1637.9,1637.5,6.31199151]